fUST/lending_fUST_20240928
["ID","MTS","AMOUNT","RATE_DAILY","PERIOD"]
[339381433,1727521859827,-157.8,0.00272508,120]
[339381434,1727521859837,-727.83,0.00273972,120]
[339381435,1727521859846,-727.83,0.00273972,120]
[339381436,1727521859855,-727.83,0.00273972,120]
[339381437,1727521859864,-727.83,0.00273972,120]
[339381438,1727521859874,-727.83,0.00273972,120]
[339381439,1727521859884,-727.83,0.00273972,120]
[339381440,1727521859893,-727.83,0.00273972,120]
[339381441,1727521859903,-727.83,0.00273972,120]
[339381442,1727521859912,-727.83,0.00273972,120]
[339381443,1727521859921,-727.83,0.00273972,120]
[339381444,1727521859930,-727.83,0.00273972,120]
[339381445,1727521859940,-727.83,0.00273972,120]
[339381446,1727521859949,-727.83,0.00273972,120]
[339381447,1727521859958,-727.83,0.00273972,120]
[339381448,1727521859967,-727.83,0.00273972,120]
[339381449,1727521859977,-727.83,0.00273972,120]
[339381450,1727521859986,-727.83,0.00273972,120]
[339381451,1727521859995,-727.83,0.00273972,120]
[339381452,1727521860004,-727.83,0.00273972,120]
[339381453,1727521860014,-727.83,0.00273972,120]
[339381454,1727521860024,-727.83,0.00273972,120]
[339381455,1727521860033,-727.83,0.00273972,120]
[339381456,1727521860044,-727.83,0.00273972,120]
[339381457,1727521860054,-727.86624818,0.00273972,120]
[339381458,1727521860064,-1000.0,0.00274,120]
[339381459,1727521860073,-714.28571429,0.0028,120]
[339381460,1727521860083,-1000.0,0.002863,120]
[339381461,1727521860092,-156.81181581,0.002864,120]
[339381462,1727521860101,-80664.12558375,0.002888,120]
[339381463,1727521860111,-10420.7641017,0.00289,120]
[339381464,1727521860120,-689.65517241,0.0029,120]
[339381465,1727521860130,-5000.0,0.0029,120]
[339381466,1727521860139,-5000.0,0.0029,120]
[339381467,1727521860149,-1000.0,0.002963,120]
[339381468,1727521860161,-2000.0,0.0029948,120]
[339381469,1727521860170,-200.0,0.003,120]
[339381470,1727521860179,-446.8500671,0.003,120]
[339381471,1727521860189,-10000.0,0.003,120]
[339381472,1727521860198,-2998.26374988,0.003,120]
[339381473,1727521860207,-346.74068146,0.0031,120]
[339381474,1727521860217,-157.8,0.00313859,120]
[339381475,1727521860226,-3630.28,0.0032,60]
[339381476,1727521860235,-160.89201397,0.003235,5]
[339381477,1727521860245,-59999.99,0.003333,120]
[339381478,1727521860254,-20001.64685611,0.00349998,120]
[339381479,1727521860264,-2000.0,0.0035,120]
[339381480,1727521860273,-2998.26374988,0.0035,120]
[339381481,1727521860283,-157.8,0.0035521,120]
[339381482,1727521860293,-156.68661675,0.003562,120]
[339381483,1727521860302,-289.9,0.0036,60]
[339381484,1727521860311,-577.21,0.0036,60]
[339381485,1727521860321,-156.68661675,0.00385,120]
[339381486,1727521860392,-1000.0,0.003863,120]
[339381487,1727521860404,-5000.0,0.0039,120]
[339381488,1727521860413,-1000.0,0.003963,120]
[339381489,1727521860426,-157.8,0.0039656,120]
[339381490,1727521860436,-3111.09419822,0.00399,120]
[339381491,1727521860448,-24945.999999,0.004,120]
[339381492,1727521860457,-200.0,0.004,120]
[339381493,1727521860468,-900.0,0.004,120]
[339381494,1727521860478,-417.0,0.004,87]
[339381495,1727521860489,-10000.0,0.004,120]
[339381496,1727521860500,-2998.26374988,0.004,120]
[339381497,1727521860510,-3106.0,0.004,120]
[339381498,1727521860521,-3106.0,0.00401,120]
[339381499,1727521860532,-3106.0,0.00402,120]
[339381500,1727521860541,-3106.0,0.00403,120]
[339381501,1727521860551,-556.19843266,0.00404,120]
[339381502,1727521860560,-3106.0,0.00404,120]
[339381503,1727521860570,-554.0,0.00405,120]
[339381504,1727521860580,-3106.0,0.00405,120]
[339381505,1727521860592,-554.0,0.00406,120]
[339381506,1727521860602,-3106.0,0.00406,120]
[339381507,1727521860612,-682.99051311,0.00407,120]
[339381508,1727521860622,-554.0,0.00407,120]
[339381509,1727521860632,-3106.0,0.00407,120]
[339381510,1727521860643,-728.651181,0.0041,100]
[339381511,1727521860653,-157.8,0.00437911,120]
[339381512,1727521860662,-5000.0,0.00445,120]
[339381513,1727521860671,-2000.0,0.0044807,120]
[339381514,1727521860681,-2998.26374988,0.0045,120]
[339381515,1727521860690,-412.2788661,0.00472054,120]
[339381516,1727521860699,-80000.0,0.004777,120]
[339381517,1727521860711,-157.8,0.00479262,120]
[339381518,1727521860722,-162.73256912,0.004813,120]
[339381519,1727521860731,-1000.0,0.004863,120]
[339381520,1727521860743,-5000.0,0.0049,120]
[339381521,1727521860753,-1000.0,0.004963,120]
[339381522,1727521860763,-5000.0,0.005,90]
[339381523,1727521860775,-200.0,0.005,120]
[339381524,1727521860787,-1000.0,0.005,120]
[339381525,1727521860797,-10000.0,0.005,120]
[339381526,1727521860808,-2998.26374988,0.005,120]
[339381527,1727521860819,-8000.0,0.005,30]
[339381528,1727521860840,-518.436,0.0052,118]
[339381529,1727521860850,-157.8,0.00520613,120]
[339381530,1727521861068,-550009.000001,0.00545454,120]
[339381531,1727521861084,-2998.26374988,0.0055,120]
[339381532,1727521861093,-5000.0,0.00555,120]
[339381533,1727521861103,-157.8,0.00561964,120]
[339381534,1727521861113,-412.2788661,0.00572054,120]
[339381535,1727521861124,-6359.25795152,0.0057418,120]
[339381536,1727521861134,-156.68661675,0.005776,120]
[339381537,1727521861143,-200000.0,0.00578,120]
[339381538,1727521861153,-200000.0,0.00578,60]
[339381539,1727521861162,-1000.0,0.00579999,120]
[339381540,1727521861171,-1000.0,0.005863,120]
[339381541,1727521861180,-5000.0,0.0059,120]
[339381542,1727521861190,-1000.0,0.005963,120]
[339381543,1727521861200,-50315.0,0.00598,120]
[339381544,1727521861209,-1000.0,0.006,120]
[339381545,1727521861218,-5000.0,0.006,90]
[339381546,1727521861227,-200.0,0.006,120]
[339381547,1727521861236,-900.0,0.006,120]
[339381548,1727521861246,-498.3854,0.006,107]
[339381549,1727521861255,-500.0,0.006,120]
[339381550,1727521861264,-2998.26374988,0.006,120]
[339381551,1727521861274,-157.8,0.00603315,120]
[339381552,1727521861283,-153.0,0.00606641,120]
[339381553,1727521861293,-153.0,0.00606641,120]
[339381554,1727521861303,-153.0,0.00606742,120]
[339381555,1727521861314,-153.0,0.00607597,120]
[339381556,1727521861324,-153.0,0.00607597,120]
[339381557,1727521861334,-2000.0,0.0061085,120]
[339381558,1727521861344,-6871.77972678,0.0064,120]
[339381559,1727521861354,-157.8,0.00644666,120]
[339381560,1727521861363,-357.846413,0.006469,120]
[339381561,1727521861373,-201.23209297,0.0064747,120]
[339381562,1727521861384,-5000.0,0.0065,60]
[339381563,1727521861394,-2998.26374988,0.0065,120]
[339381564,1727521861404,-547.0,0.0066891,85]
[339381565,1727521861414,-289.9,0.0067,60]
[339381566,1727521861424,-577.21,0.0067,60]
[339381567,1727521861434,-3630.28,0.0067,60]
[339381568,1727521861443,-313.3732335,0.006739,120]
[339381569,1727521861454,-1018.0,0.0068,120]
[339381570,1727521861465,-563.71746428,0.00684931,28]
[339381571,1727521861476,-157.8,0.00686017,120]
[339381572,1727521861485,-1000.0,0.006863,120]
[339381573,1727521861496,-153.0,0.00688192,120]
[339381574,1727521861507,-153.0,0.00688192,120]
[339381575,1727521861518,-153.0,0.00688192,120]
[339381576,1727521861529,-153.0,0.00688192,120]
[339381577,1727521861539,-153.0,0.00688192,120]
[339381578,1727521861549,-153.0,0.00688192,120]
[339381579,1727521861560,-153.0,0.00688673,120]
[339381580,1727521861569,-153.0,0.00688673,120]
[339381581,1727521861582,-153.0,0.00688731,120]
[339381582,1727521861591,-153.0,0.00688731,120]
[339381583,1727521861601,-153.0,0.00688731,120]
[339381584,1727521861611,-153.0,0.00688731,120]
[339381585,1727521861620,-153.0,0.00688731,120]
[339381586,1727521861629,-153.0,0.00688731,120]
[339381587,1727521861638,-153.0,0.00689211,120]
[339381588,1727521861647,-153.0,0.00689211,120]
[339381589,1727521861656,-153.0,0.00689264,120]
[339381590,1727521861665,-153.0,0.00689264,120]
[339381591,1727521861675,-153.0,0.00689264,120]
[339381592,1727521861685,-153.0,0.00689264,120]
[339381593,1727521861696,-153.0,0.00689264,120]
[339381594,1727521861705,-153.0,0.00689264,120]
[339381595,1727521861716,-153.0,0.00689718,120]
[339381596,1727521861726,-153.0,0.00689718,120]
[339381597,1727521861736,-153.0,0.00689771,120]
[339381598,1727521861745,-153.0,0.00689771,120]
[339381599,1727521861754,-153.0,0.00689771,120]
[339381600,1727521861764,-153.0,0.00689771,120]
[339381601,1727521861777,-153.0,0.00689771,120]
[339381602,1727521861787,-153.0,0.00689771,120]
[339381603,1727521861796,-153.0,0.00690262,120]
[339381604,1727521861806,-153.0,0.00690262,120]
[339381605,1727521861817,-153.0,0.00690329,120]
[339381606,1727521861829,-153.0,0.00690329,120]
[339381607,1727521861837,-153.0,0.00690329,120]
[339381608,1727521861846,-153.0,0.00690329,120]
[339381609,1727521861856,-153.0,0.00690329,120]
[339381610,1727521861868,-153.0,0.00690329,120]
[339381611,1727521861878,-1000.0,0.006963,120]
[339381612,1727521861888,-500.0,0.00699999,120]
[339381613,1727521861898,-392.934264,0.00699999,120]
[339381614,1727521861907,-497.12211343,0.00699999,120]
[339381615,1727521861916,-500.0,0.00699999,120]
[339381616,1727521861925,-500.0,0.00699999,120]
[339381617,1727521861937,-500.0,0.00699999,120]
[339381618,1727521861948,-562.97883912,0.00699999,120]
[339381619,1727521861957,-5000.0,0.007,90]
[339381620,1727521861967,-150.0,0.007,120]
[339381621,1727521861977,-4681.81319236,0.007,120]
[339381622,1727521861987,-200.0,0.007,120]
[339381623,1727521861998,-2042.69782116,0.007,120]
[339381624,1727521862009,-200000.0,0.007,120]
[339381625,1727521862018,-5062.2844867,0.007,120]
[339381626,1727521862029,-2998.26374988,0.007,120]
[339381627,1727521862039,-151.0,0.007,120]
[339381628,1727521862051,-150.0,0.00701,120]
[339381629,1727521862060,-200.0,0.00702,120]
[339381630,1727521862072,-26980.92629276,0.0071,120]
[339381631,1727521862082,-20239.7363121,0.00727,120]
[339381632,1727521862094,-2502.55681423,0.00729098,120]
[339381633,1727521862104,-1000.0,0.00729999,120]
[339381634,1727521862114,-1500.0,0.0074747,120]
[339381635,1727521862123,-44533.9161766,0.007488,120]
[339381636,1727521862133,-1000.0,0.00749999,120]
[339381637,1727521862142,-354.646,0.0075,99]
[339381638,1727521862153,-1000.0,0.0075,120]
[339381639,1727521862164,-2998.26374988,0.0075,120]
[339381640,1727521862315,-500.0,0.00054794,120]
[339381641,1727521870215,1019.8880514,0.00041801,63]
[339381644,1727522211986,-578.0,0.000405,120]
[339381645,1727522217972,-732.0,0.000405,120]
[339381646,1727522222398,-1000.0,0.000405,120]
[339381647,1727522250376,-590.0,0.000405,120]
[339381650,1727522337807,-1000.0,0.000405,120]
[339381651,1727522342825,-1000.0,0.000405,120]
[339381653,1727522755178,-765.16807945,0.000399,4]
[339381654,1727522755202,-400.0,0.00039999,5]
[339381655,1727522755224,-615.6698472,0.0004,120]
[339381656,1727522767416,302.0,0.0003,120]
[339381657,1727522831098,-400.0,0.00039898,5]
[339381658,1727522831124,-2844.76335328,0.00039899,4]
[339381659,1727522834122,-8273.74236066,0.00039899,4]
[339381660,1727522834144,-1397.83634611,0.0004,120]
[339381661,1727522843151,-400.29647656,0.0004,120]
[339381662,1727522849108,-672.82263704,0.0004,120]
[339381663,1727522850100,-380.43093677,0.0004,120]
[339381664,1727522852718,-2000.0,0.00039368,120]
[339381665,1727522853115,-2539.80330688,0.0004,120]
[339381666,1727522868340,-3993.14044944,0.0004,120]
[339381667,1727522868367,-161.111167,0.0004098,2]
[339381668,1727522868395,-163.32008314,0.00041801,120]
[339381669,1727522868422,-150.0,0.00042562,5]
[339381670,1727522868448,-250.0,0.00050336,2]
[339381671,1727522868476,-178.843317,0.00050484,2]
[339381672,1727522868504,-178.843317,0.00050922,2]
[339381673,1727522868531,-178.843317,0.00051361,2]
[339381674,1727522868558,-178.843317,0.00051799,2]
[339381675,1727522868586,-178.843317,0.00052238,2]
[339381676,1727522868612,-178.843317,0.00052676,2]
[339381677,1727522868638,-178.843317,0.00053114,2]
[339381678,1727522886624,1366.63564565,0.0005,120]
[339381679,1727522900435,1003.4943876,0.0003,2]
[339381680,1727522917492,331.13760206,0.00039368,7]
[339381689,1727522999161,291660.39504817,0.00054795,120]
[339381734,1727523032526,-637.94918244,0.00054521,14]
[339381736,1727523032535,-18.95960572,0.00056575,120]
[339381738,1727523032548,-287.04039428,0.00056575,120]
[339381740,1727523032558,-209.2405291,0.00056712,120]
[339381742,1727523032567,-175.21419104,0.00056712,120]
[339381745,1727523032579,-159.43542296,0.00056712,120]
[339381747,1727523032589,-209.2405291,0.00056712,120]
[339381750,1727523032599,-208.6218613,0.00056712,120]
[339381753,1727523032609,-1180.44954754,0.00069,120]
[339381765,1727523038613,-482.26637646,0.00069,120]
[339381766,1727523038623,-159.97,0.000745,72]
[339381767,1727523038632,-159.97,0.000745,72]
[339381768,1727523038642,-159.97,0.000745,72]
[339381769,1727523038651,-500.0,0.0008219,120]
[339381770,1727523038662,-302.08497231,0.0008219,120]
[339381771,1727523038671,-500.0,0.0008219,120]
[339381772,1727523038680,-500.0,0.0008219,120]
[339381773,1727523038690,-616.97980959,0.00082191,120]
[339381774,1727523038723,-44.47738628,0.00082191,120]
[339381803,1727523040634,-42.27010409,0.00070281,120]
[339381858,1727523043604,-228.00289591,0.00070281,120]
[339381860,1727523043613,-4338.54280413,0.00082191,120]
[339381862,1727523043624,-3137.31,0.00082191,120]
[339381864,1727523043634,-500.0,0.0008493,120]
[339381866,1727523043643,-500.0,0.0008493,120]
[339381867,1727523043655,-500.0,0.0008493,120]
[339381868,1727523043770,-3137.31,0.0008493,120]
[339381869,1727523043787,-1000.0,0.000863,120]
[339381870,1727523043799,-500.0,0.0008767,120]
[339381871,1727523043808,-500.0,0.0008767,120]
[339381872,1727523043819,-500.0,0.0008767,120]
[339381873,1727523043829,-3137.31,0.0008767,120]
[339381874,1727523043839,-5000.0,0.0009,90]
[339381875,1727523043848,-5282.18863914,0.00090309,28]
[339381876,1727523043859,-500.0,0.00090409,120]
[339381877,1727523043871,-500.0,0.00090409,120]
[339381878,1727523043880,-3137.31,0.00090409,120]
[339381879,1727523043891,-1000.0,0.00093,120]
[339381880,1727523043901,-500.0,0.00093149,120]
[339381881,1727523043912,-500.0,0.00093149,120]
[339381882,1727523043923,-3137.31,0.00093149,120]
[339381883,1727523043933,-5000.0,0.00094,94]
[339381884,1727523043943,-5000.0,0.000945,120]
[339381885,1727523043953,-500.0,0.00095889,120]
[339381886,1727523043965,-500.0,0.00095889,120]
[339381887,1727523043975,-3137.31,0.00095889,120]
[339381888,1727523043986,-1000.0,0.000963,120]
[339381889,1727523043998,-500.0,0.00098629,120]
[339381890,1727523044009,-3137.31,0.00098629,120]
[339381891,1727523044019,-1285.34,0.0009879,3]
[339381892,1727523044029,-422781.59746991,0.000988,30]
[339381896,1727523046570,-139370.74506855,0.000988,30]
[339381897,1727523110960,692.7,0.00045249,31]
[339381901,1727523372621,1000.0,0.0004109,2]
[339381903,1727523492781,151.0,0.0003,120]
[339381904,1727523506182,453.0,0.0003,120]
[339381905,1727523580495,198396.0,0.0004,2]
[339381906,1727523779948,1988.0,0.00037725,120]
[339381907,1727523839987,2000.0,0.00037725,120]
[339381909,1727523944153,-160.823211,0.000379,7]
[339381910,1727523944176,-1426.52308675,0.00038,120]
[339381911,1727524012431,252.0,0.00034,14]
[339381912,1727524027093,-3827.86026377,0.00037658,2]
[339381913,1727524040173,-580.58975974,0.00037658,2]
[339381914,1727524041098,-5591.54997649,0.00037658,2]
[339381915,1727524041120,-138.66492058,0.00037658,2]
[339381916,1727524047171,-1771.93507942,0.00037658,2]
[339381917,1727524047199,-353.34868495,0.00038,120]
[339381918,1727524052116,-220.1282283,0.00038,120]
[339381919,1727524052138,-2000.0,0.00042,120]
[339381920,1727524052160,-151.0,0.00045014,120]
[339381921,1727524052182,-988.3,0.00046183,31]
[339381922,1727524052205,-250.0,0.00050701,2]
[339381923,1727524052227,-631.0695904,0.00051322,2]
[339381924,1727524052250,-170.456878,0.00052795,2]
[339381925,1727524052275,-170.456878,0.00053139,2]
[339381926,1727524052299,-170.456878,0.00053483,2]
[339381927,1727524052321,-170.456878,0.00053827,2]
[339381928,1727524052343,-170.456878,0.00054171,2]
[339381929,1727524052368,-170.456878,0.00054515,2]
[339381930,1727524052389,-153.0,0.00057534,120]
[339381931,1727524052410,-153.0,0.00057534,120]
[339381932,1727524052430,-153.0,0.00057534,120]
[339381933,1727524052451,-153.0,0.00057534,120]
[339381934,1727524052472,-153.0,0.00057534,120]
[339381935,1727524052493,-153.0,0.00057534,120]
[339381936,1727524052513,-153.0,0.00057534,120]
[339381937,1727524052534,-46.58501221,0.00057534,120]
[339381940,1727524164134,-400.0,0.0004,2]
[339381945,1727524232536,-631.0695904,0.000545,120]
[339382085,1727524238748,-236.14264048,0.000545,120]
[339382142,1727524246585,-4132.78776912,0.000545,120]
[339382143,1727524246596,-170.456878,0.00054859,2]
[339382144,1727524246607,-161.111167,0.00055043,2]
[339382145,1727524246618,-170.456878,0.00055203,2]
[339382146,1727524246628,-170.456878,0.00055547,2]
[339382147,1727524246638,-456.1759814,0.00056712,120]
[339382148,1727524246652,-412.2788661,0.00057534,120]
[339382149,1727524246661,-412.2788661,0.00057534,120]
[339382150,1727524246671,-195.0491021,0.00057534,120]
[339382151,1727524246681,-824.5577322,0.00057534,120]
[339382152,1727524246691,-988.3,0.00058076,120]
[339382153,1727524246700,-151.0,0.00060027,120]
[339382154,1727524246710,-207.8,0.00065753,120]
[339382155,1727524246720,-2140.832788,0.00069,120]
[339382156,1727524246731,-988.3,0.00069968,120]
[339382157,1727524246742,-151.0,0.00075041,120]
[339382158,1727524246753,-172.765,0.00075041,120]
[339382159,1727524246763,-1500.0,0.00079998,120]
[339382160,1727524246774,-163.32008313,0.00079999,120]
[339382161,1727524246784,-500.0,0.00079999,120]
[339382162,1727524246794,-649.45,0.00079999,120]
[339382163,1727524246804,-421.85778914,0.00079999,120]
[339382165,1727524253239,1044.00484354,0.00037,120]
[339382166,1727524323836,152.47,0.000266,31]
[339382167,1727524323896,152.47,0.000386,31]
[339382168,1727524323947,152.47,0.000386,31]
[339382173,1727524926271,153.85,0.000266,31]
[339382175,1727525141150,-153.85,0.000386,31]
[339382176,1727525141176,-153.85,0.000386,31]
[339382177,1727525141200,-758.8,0.00046347,31]
[339382178,1727525141226,-153.85,0.000506,48]
[339382179,1727525141251,-153.85,0.000506,48]
[339382180,1727525141271,-162.0,0.00052,120]
[339382181,1727525141291,-150.0,0.00055253,2]
[339382182,1727525141310,-300.0,0.00055499,120]
[339382183,1727525141331,-171.82150548,0.00055499,15]
[339382184,1727525225126,-724.8,0.00046349,31]
[339382185,1727525225147,-152.03907526,0.00055161,2]
[339382186,1727525225168,-3736.95452664,0.0005519,2]
[339382187,1727525229105,-227.21080746,0.0005519,2]
[339382188,1727525229128,-306.95029714,0.000555,30]
[339382189,1727525247114,-2557.04970286,0.000555,30]
[339382190,1727525247136,-2897.081117,0.00055876,2]
[339382191,1727525253091,-1067.0842172,0.00055876,2]
[339382192,1727525253115,-250.0,0.00056121,120]
[339382193,1727525253138,-709.01288119,0.00057469,120]
[339382257,1727525431859,-5000.0,0.000545,120]
[339382259,1727525431869,-209.52019565,0.00056079,30]
[339382262,1727525431878,-306.06723172,0.00056079,4]
[339382264,1727525431887,-163.703495,0.00056179,30]
[339382266,1727525431896,-96.48026606,0.00056488,2]
[339382347,1727525438009,-153.51973394,0.00056488,2]
[339382349,1727525438019,-1739.28740184,0.000565,120]
[339382374,1727525439805,-3260.71259816,0.000565,120]
[339382375,1727525439815,-250.0,0.00056643,2]
[339382376,1727525439827,-290.8570059,0.00056712,120]
[339382377,1727525439838,-269.9956122,0.00056712,120]
[339382378,1727525439848,-250.0,0.00056797,2]
[339382379,1727525439857,-250.0,0.00056952,2]
[339382380,1727525439866,-250.0,0.00057107,2]
[339382381,1727525439876,-250.0,0.00057262,2]
[339382382,1727525439885,-250.0,0.00057417,2]
[339382383,1727525439895,-557.98276281,0.00057469,120]
[339382384,1727525439904,-250.0,0.00057572,2]
[339382385,1727525439914,-250.0,0.00057727,2]
[339382386,1727525439924,-250.0,0.00057882,2]
[339382387,1727525439935,-250.0,0.00058037,2]
[339382388,1727525439946,-250.0,0.00058192,2]
[339382389,1727525439964,-724.8,0.00058226,120]
[339382390,1727525439973,-250.0,0.00058347,2]
[339382391,1727525439982,-250.0,0.00058502,2]
[339382392,1727525439991,-250.0,0.00058657,2]
[339382393,1727525440001,-250.0,0.00058812,2]
[339382394,1727525440010,-250.0,0.00058966,2]
[339382395,1727525440019,-250.0,0.00059121,2]
[339382396,1727525440029,-250.0,0.00059276,2]
[339382397,1727525440038,-250.0,0.00059431,2]
[339382398,1727525440047,-153.85,0.000625,63]
[339382399,1727525440060,-153.85,0.000625,63]
[339382400,1727525440070,-500.0,0.00064999,120]
[339382401,1727525440078,-717.02,0.00064999,120]
[339382402,1727525440088,-299.64,0.00064999,18]
[339382403,1727525440098,-1500.0,0.00064999,120]
[339382404,1727525440108,-5000.0,0.00065,120]
[339382405,1727525440118,-207.8,0.00065753,120]
[339382406,1727525440129,-500.0,0.00067739,120]
[339382407,1727525440140,-717.02,0.00067739,120]
[339382408,1727525440150,-1500.0,0.00067739,120]
[339382409,1727525440159,-174.789846,0.00069,120]
[339382410,1727525440168,-724.8,0.00070104,120]
[339382411,1727525440177,-4840.93752949,0.00070379,28]
[339382412,1727525440187,-500.0,0.00070479,120]
[339382413,1727525440196,-717.02,0.00070479,120]
[339382414,1727525440206,-1500.0,0.00070479,120]
[339382415,1727525440214,-562.56846318,0.00073218,91]
[339382487,1727526337108,-302.45563732,0.00037478,30]
[339382488,1727526337137,-765.16807945,0.00045101,4]
[339382489,1727526337161,-250.0,0.00045201,2]
[339382490,1727526337187,-162.515509,0.0004548,2]
[339382491,1727526337213,-162.515509,0.00045638,2]
[339382492,1727526337249,-162.515509,0.00045796,2]
[339382493,1727526337282,-236.60297067,0.0004584,2]
[339382495,1727526430128,-162.515509,0.00045954,2]
[339382496,1727526430151,-162.515509,0.00046112,2]
[339382497,1727526430173,-532.3971369,0.00046233,2]
[339382498,1727526430197,-162.515509,0.0004627,2]
[339382499,1727526430219,-162.515509,0.00046428,2]
[339382500,1727526430240,-526.3,0.00046493,31]
[339382501,1727526430262,-162.515509,0.00046586,2]
[339382502,1727526430284,-162.515509,0.00046744,2]
[339382503,1727526430306,-227.85268,0.00046848,2]
[339382504,1727526430327,-162.515509,0.00046902,2]
[339382505,1727526430354,-162.515509,0.0004706,2]
[339382506,1727526430376,-162.515509,0.00047218,2]
[339382507,1727526430398,-162.515509,0.00047376,2]
[339382508,1727526430419,-162.515509,0.00047534,2]
[339382509,1727526430440,-162.515509,0.00047692,2]
[339382510,1727526430467,-162.515509,0.0004785,2]
[339382511,1727526430490,-550.0,0.0004785,5]
[339382512,1727526430514,-378.0,0.00050623,15]
[339382513,1727526430536,-823.478131,0.00056712,120]
[339382514,1727526430559,-526.3,0.00058357,120]
[339382515,1727526430582,-2879.23761567,0.00059605,2]
[339382516,1727526430609,-609.53301571,0.0005989,28]
[339382517,1727526433213,-3340.65317756,0.0005989,28]
[339382518,1727526434099,-285.63414499,0.0005989,28]
[339382519,1727526434121,-373.3223388,0.00059973,7]
[339382520,1727526444107,-7058.90993009,0.00059873,4]
[339382521,1727526449100,-668.86262696,0.00059873,4]
[339382523,1727526517173,241.95161085,0.00037666,7]
[339382524,1727526520787,1796.77820822,0.00025,2]
[339382525,1727526549388,-183.52,0.0005997,30]
[339382526,1727526549413,-152.93,0.0005997,30]
[339382527,1727526549436,-1437.83,0.0005997,3]
[339382528,1727526549456,-764.7,0.0005997,30]
[339382529,1727526549478,-1198.2,0.0005997,3]
[339382530,1727526549503,-998.5,0.0005997,3]
[339382531,1727526549533,-126.6776612,0.00059973,7]
[339382532,1727526549553,-500.0,0.00059973,15]
[339382533,1727526549574,-193.69178332,0.00059979,120]
[339382534,1727526559169,-5000.0,0.000595,120]
[339382535,1727526559190,-706.1982835,0.0005987,4]
[339382625,1727526638211,-1776.43336795,0.000595,120]
[339382626,1727526638332,-3223.56663205,0.000595,120]
[339382627,1727526638342,-2447.79415245,0.000595,120]
[339382644,1727526643126,-815.68696208,0.000595,120]
[339382645,1727526643137,-3706.34279603,0.00059879,28]
[339382646,1727526643146,-387.18,0.0005989,30]
[339382647,1727526643157,-577.83,0.0005989,3]
[339382648,1727526643166,-53116.14626214,0.000599,30]
[339382662,1727526851203,151.0,0.0003,120]
[339382663,1727526862474,484.0,0.0003,120]
[339382671,1727527395274,1513.03986266,0.00026219,2]
[339382674,1727527541161,-1856.00591932,0.00042,120]
[339382675,1727527569051,151.0,0.0003,120]
[339382676,1727527631101,-2684.53487339,0.000419,4]
[339382677,1727527631134,-143.99408068,0.00042,120]
[339382678,1727527631158,-1646.65131505,0.00042,120]
[339382679,1727527631180,-161.044979,0.00042445,2]
[339382680,1727527631202,-1019.8880514,0.00042719,63]
[339382681,1727527631225,-631.0695904,0.00042742,2]
[339382682,1727527631247,-241.201404,0.00044031,2]
[339382683,1727527631269,-248.0188265,0.0004441,2]
[339382684,1727527631291,-602.8,0.00046587,60]
[339382685,1727527631313,-1696.34594736,0.00053467,2]